fUSD/lending_fUSD_20260326
["ID","MTS","AMOUNT","RATE_DAILY","PERIOD"]
[418925435,1774567848070,-150.0,0.00017086,2]
[418925436,1774567848080,-1100.0,0.00017096,7]
[418925437,1774567848090,-89187.69564185,0.000171,2]
[418925438,1774567848100,-1247.008716,0.0001714,7]
[418925439,1774567848109,-1024.287781,0.0001714,7]
[418925440,1774567848119,-1600.0,0.00017187,2]
[418925441,1774567848128,-1972.0,0.000172,3]
[418925442,1774567848140,-1029.821622,0.00017248,7]
[418925443,1774567848149,-1246.8,0.0001726,2]
[418925444,1774567848159,-166.0,0.0001726,2]
[418925445,1774567848170,-179.0,0.0001726,2]
[418925446,1774567848179,-1808.4,0.000173,2]
[418925447,1774567848188,-500.0,0.00017394,2]
[418925448,1774567848198,-15871.25,0.000174,2]
[418925449,1774567848207,-1364.69,0.000174,2]
[418925450,1774567848216,-2097.88,0.000174,2]
[418925451,1774567848226,-2000.92,0.000174,2]
[418925452,1774567848235,-445.04,0.000175,2]
[418925453,1774567848245,-329.72,0.0001751,2]
[418925454,1774567848254,-228.36,0.0001751,2]
[418925455,1774567848264,-2418.18,0.0001751,2]
[418925456,1774567848275,-270.06,0.0001751,2]
[418925457,1774567848284,-329.72,0.0001751,2]
[418925458,1774567848294,-228.36,0.0001751,2]
[418925459,1774567848303,-259.98,0.0001751,2]
[418925460,1774567848313,-1246.8,0.00017534,2]
[418925461,1774567848323,-2000.0,0.00017566,2]
[418925462,1774567848332,-322.92,0.0001758,2]
[418925463,1774567848342,-264.69,0.0001758,2]
[418925464,1774567848351,-2000.0,0.00017616,2]
[418925465,1774567848361,-2000.0,0.00017616,2]
[418925466,1774567848371,-2000.0,0.00017616,2]
[418925467,1774567848380,-151.0,0.00017672,5]
[418925468,1774567848391,-788.0362268,0.000177,2]
[418925469,1774567848401,-196.68,0.00017725,2]
[418925470,1774567848411,-155.0,0.00017732,3]
[418925471,1774567848421,-1262.0,0.00017741,2]
[418925472,1774567848431,-1216.0,0.00017741,2]
[418925473,1774567848440,-924.0,0.00017741,2]
[418925474,1774567848450,-1045.0,0.00017741,2]
[418925475,1774567848459,-621.0,0.00017741,2]
[418925476,1774567848469,-415.0,0.00017741,2]
[418925477,1774567848478,-200.0,0.00017783,2]
[418925478,1774567848487,-3292.0,0.00017784,2]
[418925479,1774567848496,-3765.8,0.000178,2]
[418925480,1774567848506,-1246.8,0.00017808,2]
[418925481,1774567848515,-800.0,0.00017808,2]
[418925482,1774567848525,-1009.05995462,0.0001786,2]
[418925483,1774567848534,-1231.1863615,0.0001789,2]
[418925484,1774567848544,-1078.85824595,0.0001789,2]
[418925485,1774567848554,-9244.05777132,0.000179,2]
[418925486,1774567848563,-9244.05777129,0.000179,2]
[418925487,1774567848573,-9244.05777129,0.000179,2]
[418925488,1774567848582,-9244.05777129,0.000179,2]
[418925489,1774567848591,-700.0,0.00017918,7]
[418925490,1774567848602,-1327.786231,0.00017919,7]
[418925491,1774567848611,-825.283259,0.00017919,7]
[418925492,1774567848621,-20000.0,0.0001799,2]
[418925493,1774567848630,-13475.16495766,0.00018,5]
[418925494,1774567848642,-110192.54789659,0.00018,2]
[418925495,1774567848652,-1199.92011712,0.00018,2]
[418925496,1774567848662,-309.35271486,0.00018,2]
[418925497,1774567848671,-200.72348823,0.00018,14]
[418925498,1774567848681,-162.0,0.00018,2]
[418925499,1774567848691,-1000.0,0.00018,2]
[418925500,1774567848700,-340.557,0.00018,2]
[418925501,1774567848710,-200.0,0.00018,2]
[418925502,1774567848721,-1476.34,0.00018024,2]
[418925503,1774567848731,-1822.913601,0.00018032,7]
[418925504,1774567848741,-504.0,0.00018062,5]
[418925505,1774567848751,-1246.8,0.00018082,2]
[418925506,1774567848760,-1790.90892294,0.000181,2]
[418925507,1774567848770,-169.0,0.00018123,2]
[418925508,1774567848779,-1137.36988203,0.00018164,2]
[418925509,1774567848788,-2500.0,0.00018164,2]
[418925510,1774567848798,-2500.0,0.00018164,2]
[418925511,1774567848808,-1100.0,0.00018192,7]
[418925512,1774567848818,-1246.8,0.00018356,2]
[418925513,1774567848827,-89101.45,0.00018356,2]
[418925514,1774567848837,-1252.0,0.00018386,2]
[418925515,1774567848846,-1000.0,0.00018394,2]
[418925516,1774567848856,-500.0,0.00018394,2]
[418925517,1774567848865,-6000.0,0.00018463,7]
[418925518,1774567848874,-1808.4,0.000186,2]
[418925519,1774567848883,-1246.8,0.0001863,2]
[418925520,1774567848893,-207.77794832,0.00018672,5]
[418925521,1774567848902,-3000.0,0.00018712,2]
[418925522,1774567848911,-3000.0,0.00018712,2]
[418925523,1774567848921,-200.0,0.00018783,2]
[418925524,1774567848931,-155.0,0.00018799,3]
[418925525,1774567848940,-15871.25,0.000188,2]
[418925526,1774567848950,-1364.69,0.000188,2]
[418925527,1774567848959,-2097.88,0.000188,2]
[418925528,1774567848968,-2000.92,0.000188,2]
[418925529,1774567848977,-1083.25,0.00018904,2]
[418925530,1774567848986,-1246.8,0.00018904,2]
[418925531,1774567848995,-1600.0,0.00018904,2]
[418925532,1774567849004,-1600.0,0.00018905,2]
[418925533,1774567849014,-150.0,0.00018972,2]
[418925534,1774567849023,-150.0,0.00018972,2]
[418925535,1774567849032,-150.0,0.00018972,2]
[418925536,1774567849041,-179.0,0.00018972,2]
[418925537,1774567849051,-114088.5476934,0.00019,5]
[418925538,1774567849060,-5203.62342659,0.00019,2]
[418925539,1774567849070,-1000.0,0.00019,2]
[418925540,1774567849079,-3315.37372617,0.00019,7]
[418925541,1774567849089,-154118.45561856,0.00019,2]
[418925543,1774567849098,-838.15229394,0.00019,2]
[418925544,1774567849108,-507.87004936,0.00019,2]
[418925545,1774567849117,-400.0,0.00019,2]
[418925546,1774567849126,-700.0,0.00019014,7]
[418925547,1774567849137,-504.0,0.00019077,6]
[418925548,1774567849146,-445.04,0.000191,2]
[418925549,1774567849155,-1246.8,0.00019178,2]
[418925550,1774567849165,-647.65397238,0.00019178,2]
[418925551,1774567849174,-3000.0,0.00019178,2]
[418925552,1774567849184,-3000.0,0.00019178,7]
[418925553,1774567849194,-3000.0,0.00019178,12]
[418925554,1774567849203,-1000.0,0.00019178,17]
[418925555,1774567849213,-150.0,0.00019178,2]
[418925556,1774567849224,-150.0,0.00019178,2]
[418925557,1774567849234,-150.0,0.00019178,2]
[418925558,1774567849243,-165.95583576,0.00019178,2]
[418925559,1774567849252,-20288.31,0.00019178,2]
[418925560,1774567849263,-151.0,0.00019178,2]
[418925561,1774567849272,-151.0,0.00019178,2]
[418925562,1774567849282,-151.0,0.00019178,2]
[418925563,1774567849291,-151.0,0.00019178,2]
[418925564,1774567849300,-151.0,0.00019178,2]
[418925565,1774567849310,-151.0,0.00019178,2]
[418925566,1774567849319,-151.0,0.00019178,2]
[418925567,1774567849329,-151.0,0.00019178,2]
[418925568,1774567849338,-151.0,0.00019178,2]
[418925569,1774567849347,-151.0,0.00019178,2]
[418925570,1774567849357,-151.0,0.00019178,2]
[418925571,1774567849367,-151.0,0.00019178,2]
[418925572,1774567849376,-154.875575,0.00019178,2]
[418925573,1774567849388,-157.538325,0.00019178,3]
[418925574,1774567849398,-332.212456,0.00019178,2]
[418925575,1774567849407,-332.212456,0.00019178,2]
[418925576,1774567849417,-332.212456,0.00019178,2]
[418925577,1774567849426,-332.212456,0.00019178,2]
[418925578,1774567849436,-332.212456,0.00019178,2]
[418925579,1774567849445,-332.212456,0.00019178,2]
[418925580,1774567849454,-332.212456,0.00019178,2]
[418925581,1774567849464,-332.212456,0.00019178,2]
[418925582,1774567849474,-332.212456,0.00019178,2]
[418925583,1774567849483,-332.212456,0.00019178,2]
[418925584,1774567849544,-332.212456,0.00019178,2]
[418925585,1774567849553,-332.212456,0.00019178,2]
[418925586,1774567849562,-332.212456,0.00019178,2]
[418925587,1774567849571,-332.212456,0.00019178,2]
[418925588,1774567849580,-332.212456,0.00019178,2]
[418925589,1774567849589,-332.212456,0.00019178,2]
[418925590,1774567849598,-332.212456,0.00019178,2]
[418925591,1774567849606,-332.212456,0.00019178,2]
[418925592,1774567849615,-332.212456,0.00019178,2]
[418925593,1774567849625,-332.212456,0.00019178,2]
[418925594,1774567849634,-6403.418968,0.00019178,2]
[418925595,1774567849643,-6403.418968,0.00019178,2]
[418925596,1774567849651,-6403.418968,0.00019178,2]
[418925597,1774567849660,-6403.418968,0.00019178,2]
[418925598,1774567849669,-6403.418968,0.00019178,2]
[418925599,1774567849678,-6403.418968,0.00019178,2]
[418925600,1774567849687,-6403.418968,0.00019178,2]
[418925601,1774567849696,-6403.418968,0.00019178,2]
[418925602,1774567849705,-6403.418968,0.00019178,2]
[418925603,1774567849714,-6403.418968,0.00019178,2]
[418925604,1774567849722,-6403.418968,0.00019178,2]
[418925605,1774567849731,-6403.418968,0.00019178,2]
[418925606,1774567849740,-6403.418968,0.00019178,2]
[418925607,1774567849749,-6403.418968,0.00019178,2]
[418925608,1774567849759,-6403.418968,0.00019178,2]
[418925609,1774567849768,-6403.418968,0.00019178,2]
[418925610,1774567849777,-6403.418968,0.00019178,2]
[418925611,1774567849786,-6403.418968,0.00019178,2]
[418925612,1774567849795,-6403.418968,0.00019178,2]
[418925613,1774567849803,-6403.418973,0.00019178,2]
[418925614,1774567849812,-605.959304,0.00019178,2]
[418925615,1774567849821,-605.959304,0.00019178,2]
[418925616,1774567849830,-605.959304,0.00019178,2]
[418925617,1774567849839,-605.959304,0.00019178,2]
[418925618,1774567849848,-605.959304,0.00019178,2]
[418925619,1774567849857,-605.959304,0.00019178,2]
[418925620,1774567849866,-605.959304,0.00019178,2]
[418925621,1774567849875,-605.959304,0.00019178,2]
[418925622,1774567849884,-605.959304,0.00019178,2]
[418925623,1774567849893,-605.959304,0.00019178,2]
[418925624,1774567849901,-605.959304,0.00019178,2]
[418925625,1774567849910,-605.959304,0.00019178,2]
[418925626,1774567849920,-605.959304,0.00019178,2]
[418925627,1774567849929,-605.959304,0.00019178,2]
[418925628,1774567849938,-605.959304,0.00019178,2]
[418925629,1774567849947,-605.959304,0.00019178,2]
[418925630,1774567849956,-605.959304,0.00019178,2]
[418925631,1774567849965,-605.959304,0.00019178,2]
[418925632,1774567849973,-605.959304,0.00019178,2]
[418925633,1774567849982,-605.959311,0.00019178,2]
[418925634,1774567849991,-150.0,0.00019178,2]
[418925635,1774567850000,-150.0,0.00019178,2]
[418925636,1774567850009,-150.0,0.00019178,2]
[418925637,1774567850018,-260.17086707,0.00019178,2]
[418925638,1774567850027,-160.31097219,0.00019178,2]
[418925639,1774567850036,-447.5992,0.000192,2]
[418925640,1774567850046,-255.16792343,0.0001926,2]
[418925641,1774567850055,-424.4137184,0.0001926,2]
[418925642,1774567850064,-1100.0,0.00019288,7]
[418925643,1774567850073,-2000.0,0.00019323,2]
[418925644,1774567850082,-500.0,0.00019394,2]
[418925645,1774567850091,-1246.8,0.00019452,2]
[418925646,1774567850100,-2244.615688,0.00019477,7]
[418925647,1774567850109,-1843.718005,0.00019477,7]
[418925648,1774567850118,-150.0,0.00019484,2]
[418925649,1774567850127,-154.0,0.00019484,2]
[418925650,1774567850136,-3373.15642623,0.00019543,2]
[418925651,1774567850145,-1000.0,0.000196,2]
[418925652,1774567850154,-1853.67892,0.000196,7]
[418925653,1774567850163,-186.93,0.00019658,2]
[418925654,1774567850172,-250.0,0.00019726,2]
[418925655,1774567850181,-150.0,0.00019726,2]
[418925656,1774567850190,-250.0,0.00019726,2]
[418925657,1774567850199,-200.0,0.00019783,2]
[418925658,1774567850208,-150.0,0.000198,2]
[418925659,1774567850217,-186.0,0.000198,2]
[418925660,1774567850226,-1273.42,0.00019835,2]
[418925661,1774567850236,-155.0,0.00019866,3]
[418925662,1774567850245,-70194.79171482,0.000199,2]
[418925663,1774567850254,-4961.14716566,0.000199,3]
[418925664,1774567850263,-1808.4,0.000199,2]
[418925665,1774567850273,-1906.0,0.00019909,2]
[418925666,1774567850282,-1350.32,0.00019918,3]
[418925667,1774567850291,-228.36,0.00019918,3]
[418925668,1774567850300,-1223.10407095,0.0001995,15]
[418925669,1774567850310,-120097.95936756,0.0001998,2]
[418925670,1774567850319,-559.61498424,0.00019999,2]
[418925671,1774567850329,-150.0,0.0002,2]
[418925672,1774567850339,-7036.89879029,0.0002,2]
[418925673,1774567850349,-1543.34573627,0.0002,2]
[418925674,1774567850358,-177.65023228,0.0002,2]
[418925675,1774567850368,-25763.19703966,0.0002,2]
[418925676,1774567850377,-4733.32529049,0.0002,2]
[418925677,1774567850387,-6556.30368167,0.0002,2]
[418925678,1774567850396,-3950.0,0.0002,2]
[418925679,1774567850406,-1302.92639869,0.0002,2]
[418925680,1774567850415,-132943.75971888,0.0002,2]
[418925681,1774567850424,-1051.79434615,0.0002,2]
[418925682,1774567850433,-2882.2665594,0.0002,2]
[418925683,1774567850442,-13009.33172462,0.0002,2]
[418925684,1774567850451,-152.0,0.0002,2]
[418925685,1774567850460,-5110.53756964,0.0002,2]
[418925686,1774567850469,-281.02007496,0.0002,120]
[418925687,1774567850479,-755.0,0.0002,2]
[418925688,1774567850488,-150.0,0.0002,2]
[418925689,1774567850497,-563.86823981,0.0002,2]
[418925690,1774567850506,-2110.0,0.0002,2]
[418925691,1774567850515,-500.0,0.0002,2]
[418925692,1774567850524,-2000.0,0.0002,2]
[418925693,1774567850534,-10000.0,0.0002,2]
[418925694,1774567850543,-2351.21819861,0.0002,2]
[418925695,1774567850552,-2000.0,0.0002,2]
[418925696,1774567850561,-10000.0,0.0002,2]
[418925697,1774567850570,-1216.3299,0.0002,2]
[418925698,1774567850579,-963.6491,0.0002,2]
[418925699,1774567850588,-2551.923722,0.0002,2]
[418925700,1774567850597,-825.0,0.0002,30]
[418925701,1774567850607,-292.61839576,0.0002,2]
[418925702,1774567850616,-200.0,0.0002,10]
[418925703,1774567850625,-2400.0,0.0002,2]
[418925704,1774567850635,-191.73,0.0002,2]
[418925705,1774567850644,-200.0,0.0002,2]
[418925706,1774567850654,-1000.0,0.0002,7]
[418925707,1774567850663,-151.39080208,0.0002,20]
[418925708,1774567850672,-504.0,0.00020092,7]
[418925709,1774567850681,-300.0,0.000201,10]
[418925710,1774567850690,-700.0,0.0002011,7]
[418925711,1774567850699,-329.72,0.00020137,3]
[418925712,1774567850708,-2418.18,0.00020137,3]
[418925713,1774567850717,-270.06,0.00020137,3]
[418925714,1774567850726,-150.0,0.00020137,3]
[418925715,1774567850736,-1476.34,0.00020187,2]
[418925716,1774567850745,-2000.92,0.000202,2]
[418925717,1774567850754,-1327.786231,0.00020257,7]
[418925718,1774567850764,-825.283259,0.00020257,7]
[418925719,1774567850773,-350.0,0.00020274,2]
[418925720,1774567850782,-150.0,0.00020274,2]
[418925721,1774567850791,-350.0,0.00020274,2]
[418925722,1774567850800,-15871.25,0.000203,2]
[418925723,1774567850810,-1364.69,0.000203,2]
[418925724,1774567850819,-2097.88,0.000203,2]
[418925725,1774567850828,-1100.0,0.00020384,7]
[418925726,1774567850836,-1822.913601,0.00020384,7]
[418925727,1774567850845,-500.0,0.00020394,2]
[418925728,1774567850854,-588.2864,0.000204,2]
[418925729,1774567850863,-2151.63,0.000205,2]
[418925730,1774567850872,-21679.59,0.00020548,2]
[418925731,1774567850882,-161.21,0.00020548,2]
[418925732,1774567850892,-1600.0,0.00020624,2]
[418925733,1774567850901,-22813.8787127,0.000207,2]
[418925734,1774567850910,-445.04,0.000207,7]
[418925735,1774567850919,-166.0,0.00020712,2]
[418925736,1774567850928,-1262.0,0.00020741,2]
[418925737,1774567850937,-1216.0,0.00020741,2]
[418925738,1774567850946,-924.0,0.00020741,2]
[418925739,1774567850955,-1045.0,0.00020741,2]
[418925740,1774567850964,-621.0,0.00020741,2]
[418925741,1774567850973,-415.0,0.00020741,2]
[418925742,1774567850982,-200.0,0.00020783,2]
[418925743,1774567850991,-150.0,0.00020822,7]
[418925744,1774567851000,-150.0,0.00020822,2]
[418925745,1774567851009,-450.0,0.00020822,2]
[418925746,1774567851018,-450.0,0.00020822,2]
[418925747,1774567851027,-5818.47260241,0.000209,30]
[418925748,1774567851036,-155.0,0.00020933,3]
[418925749,1774567851046,-214.0,0.00021,2]
[418925750,1774567851055,-20000.0,0.00021,2]
[418925751,1774567851064,-1201.42114817,0.00021,2]
[418925752,1774567851073,-198.28728836,0.00021,2]
[418925753,1774567851083,-2637.50576884,0.00021,7]
[418925754,1774567851091,-214.0,0.00021,2]
[418925755,1774567851101,-450.0,0.00021,2]
[418925756,1774567851110,-150.0,0.00021021,7]
[418925757,1774567851119,-12610.29,0.00021068,2]
[418925758,1774567851129,-2000.0,0.00021079,2]
[418925759,1774567851138,-1886.80011047,0.00021096,2]
[418925760,1774567851147,-504.0,0.00021108,8]
[418925761,1774567851157,-150.0,0.0002122,7]
[418925762,1774567851167,-1808.4,0.000213,2]
[418925763,1774567851176,-6427.3,0.0002137,2]
[418925764,1774567851185,-273.17431927,0.0002137,2]
[418925765,1774567851194,-550.0,0.0002137,2]
[418925766,1774567851204,-550.0,0.0002137,2]
[418925767,1774567851213,-150.0,0.00021388,2]
[418925768,1774567851222,-500.0,0.00021394,2]
[418925769,1774567851233,-500.0,0.0002141,2]
[418925770,1774567851242,-500.0,0.0002141,2]
[418925771,1774567851251,-500.0,0.0002141,2]
[418925772,1774567851260,-677.62454721,0.0002141,2]
[418925773,1774567851270,-500.0,0.0002141,2]
[418925774,1774567851280,-500.0,0.0002141,2]
[418925775,1774567851289,-500.0,0.0002141,2]
[418925776,1774567851298,-500.0,0.0002141,2]
[418925777,1774567851307,-654.89291629,0.0002141,2]
[418925778,1774567851316,-965.58798379,0.0002141,2]
[418925779,1774567851325,-500.0,0.0002141,2]
[418925780,1774567851335,-500.0,0.0002141,2]
[418925781,1774567851344,-585.28424068,0.0002141,2]
[418925782,1774567851353,-594.27289164,0.0002141,2]
[418925783,1774567851362,-1300.0,0.0002141,2]
[418925784,1774567851372,-2400.0,0.0002141,2]
[418925785,1774567851381,-1300.0,0.0002141,2]
[418925786,1774567851391,-2400.0,0.0002141,2]
[418925787,1774567851400,-1000.0,0.0002141,2]
[418925788,1774567851410,-1300.0,0.0002141,2]
[418925789,1774567851420,-2400.0,0.0002141,2]
[418925790,1774567851429,-617.69490643,0.0002141,2]
[418925791,1774567851438,-1000.0,0.0002141,2]
[418925792,1774567851447,-1300.0,0.0002141,2]
[418925793,1774567851456,-2400.0,0.0002141,2]
[418925794,1774567851465,-1000.0,0.0002141,2]
[418925795,1774567851474,-1300.0,0.0002141,2]
[418925796,1774567851483,-2400.0,0.0002141,2]
[418925797,1774567851492,-1000.0,0.0002141,2]
[418925798,1774567851502,-1300.0,0.0002141,2]
[418925799,1774567851512,-500.0,0.0002141,2]
[418925800,1774567851521,-2400.0,0.0002141,2]
[418925801,1774567851530,-1000.0,0.0002141,2]
[418925802,1774567851539,-1300.0,0.0002141,2]
[418925803,1774567851548,-788.9967917,0.0002141,2]
[418925804,1774567851558,-2400.0,0.0002141,2]
[418925805,1774567851567,-1300.0,0.0002141,2]
[418925806,1774567851577,-1000.0,0.0002141,2]
[418925807,1774567851587,-2400.0,0.0002141,2]
[418925808,1774567851596,-1300.0,0.0002141,2]
[418925809,1774567851605,-1000.0,0.0002141,2]
[418925810,1774567851615,-2400.0,0.0002141,2]
[418925811,1774567851624,-1300.0,0.0002141,2]
[418925812,1774567851633,-1000.0,0.0002141,2]
[418925813,1774567851644,-2400.0,0.0002141,2]
[418925814,1774567851653,-1300.0,0.0002141,2]
[418925815,1774567851663,-1000.0,0.0002141,2]
[418925816,1774567851672,-2400.0,0.0002141,2]
[418925817,1774567851681,-500.0,0.0002141,2]
[418925818,1774567851691,-1300.0,0.0002141,2]
[418925819,1774567851700,-1000.0,0.0002141,2]
[418925820,1774567851709,-2400.0,0.0002141,2]
[418925821,1774567851718,-3000.0,0.0002141,2]
[418925822,1774567851727,-1000.0,0.0002141,2]
[418925823,1774567851736,-1300.0,0.0002141,2]
[418925824,1774567851745,-2400.0,0.0002141,2]
[418925825,1774567851755,-500.0,0.0002141,2]
[418925826,1774567851764,-1000.0,0.0002141,2]
[418925827,1774567851773,-2161.93671067,0.0002141,2]
[418925828,1774567851782,-3913.34531386,0.0002141,2]
[418925829,1774567851791,-500.0,0.0002141,2]
[418925830,1774567851800,-3000.0,0.0002141,2]
[418925831,1774567851811,-1000.0,0.0002141,2]
[418925832,1774567851820,-1300.0,0.0002141,2]
[418925833,1774567851829,-500.0,0.0002141,2]
[418925834,1774567851839,-1120.98954752,0.0002141,2]
[418925835,1774567851848,-900.0,0.0002141,2]
[418925836,1774567851858,-500.0,0.0002141,2]
[418925837,1774567851867,-3000.0,0.0002141,2]
[418925838,1774567851876,-500.0,0.0002141,2]
[418925839,1774567851886,-1300.0,0.0002141,2]
[418925840,1774567851896,-500.0,0.0002141,2]
[418925841,1774567851906,-3000.0,0.0002141,2]
[418925842,1774567851915,-1300.0,0.0002141,2]
[418925843,1774567851924,-900.0,0.0002141,2]
[418925844,1774567851933,-500.0,0.0002141,2]
[418925845,1774567851943,-500.0,0.0002141,2]
[418925846,1774567851953,-1300.0,0.0002141,2]
[418925847,1774567851963,-3000.0,0.0002141,2]
[418925848,1774567851972,-500.0,0.0002141,2]
[418925849,1774567851981,-900.0,0.0002141,2]
[418925850,1774567851991,-500.0,0.0002141,2]
[418925851,1774567852000,-500.0,0.0002141,2]
[418925852,1774567852009,-1300.0,0.0002141,2]
[418925853,1774567852019,-3000.0,0.0002141,2]
[418925854,1774567852028,-500.0,0.0002141,2]
[418925855,1774567852038,-900.0,0.0002141,2]
[418925856,1774567852047,-582.51929466,0.0002141,2]
[418925857,1774567852057,-500.0,0.0002141,2]
[418925858,1774567852066,-1300.0,0.0002141,2]
[418925859,1774567852075,-516.469195,0.0002141,2]
[418925860,1774567852085,-3000.0,0.0002141,2]
[418925861,1774567852095,-500.0,0.0002141,2]
[418925862,1774567852104,-900.0,0.0002141,2]
[418925863,1774567852113,-500.0,0.0002141,2]
[418925864,1774567852123,-1300.0,0.0002141,2]
[418925865,1774567852132,-3000.0,0.0002141,2]
[418925866,1774567852142,-500.0,0.0002141,2]
[418925867,1774567852151,-900.0,0.0002141,2]
[418925868,1774567852160,-1300.0,0.0002141,2]
[418925869,1774567852170,-500.0,0.0002141,2]
[418925870,1774567852179,-500.0,0.0002141,2]
[418925871,1774567852189,-3000.0,0.0002141,2]
[418925872,1774567852198,-900.0,0.0002141,2]
[418925873,1774567852208,-1300.0,0.0002141,2]
[418925874,1774567852217,-500.0,0.0002141,2]
[418925875,1774567852226,-500.0,0.0002141,2]
[418925876,1774567852235,-3000.0,0.0002141,2]
[418925877,1774567852245,-900.0,0.0002141,2]
[418925878,1774567852254,-1300.0,0.0002141,2]
[418925879,1774567852264,-500.0,0.0002141,2]
[418925880,1774567852273,-500.0,0.0002141,2]
[418925881,1774567852282,-3000.0,0.0002141,2]
[418925882,1774567852292,-1300.0,0.0002141,2]
[418925883,1774567852301,-900.0,0.0002141,2]
[418925884,1774567852310,-500.0,0.0002141,2]
[418925885,1774567852320,-882.17662081,0.0002141,2]
[418925886,1774567852329,-1300.0,0.0002141,2]
[418925887,1774567852338,-3000.0,0.0002141,2]
[418925888,1774567852347,-900.0,0.0002141,2]
[418925889,1774567852355,-500.0,0.0002141,2]
[418925890,1774567852364,-1300.0,0.0002141,2]
[418925891,1774567852373,-3000.0,0.0002141,2]
[418925892,1774567852383,-900.0,0.0002141,2]
[418925893,1774567852395,-500.0,0.0002141,2]
[418925894,1774567852404,-1498.81012003,0.0002141,2]
[418925895,1774567852414,-3506.36331919,0.0002141,2]
[418925896,1774567852423,-900.0,0.0002141,2]
[418925897,1774567852432,-1300.0,0.0002141,2]
[418925898,1774567852441,-500.0,0.0002141,2]
[418925899,1774567852450,-900.0,0.0002141,2]
[418925900,1774567852459,-500.0,0.0002141,2]
[418925901,1774567852468,-1506.19272326,0.0002141,2]
[418925902,1774567852477,-500.0,0.0002141,2]
[418925903,1774567852486,-1300.0,0.0002141,2]
[418925904,1774567852496,-500.0,0.0002141,2]
[418925905,1774567852505,-1300.0,0.0002141,2]
[418925906,1774567852514,-979.9257174,0.0002141,2]
[418925907,1774567852523,-1300.0,0.0002141,2]
[418925908,1774567852532,-1300.0,0.0002141,2]
[418925909,1774567852540,-1300.0,0.0002141,2]
[418925910,1774567852549,-1300.0,0.0002141,2]
[418925911,1774567852559,-1300.0,0.0002141,2]
[418925912,1774567852567,-1300.0,0.0002141,2]
[418925913,1774567852576,-1300.0,0.0002141,2]
[418925914,1774567852585,-1300.0,0.0002141,2]
[418925915,1774567852594,-1300.0,0.0002141,2]
[418925916,1774567852603,-1300.0,0.0002141,2]
[418925917,1774567852612,-2460.9694438,0.0002141,2]
[418925918,1774567852621,-500.0,0.0002141,2]
[418925919,1774567852631,-500.0,0.0002141,2]
[418925920,1774567852641,-500.0,0.0002141,2]
[418925921,1774567852651,-500.0,0.0002141,2]
[418925922,1774567852660,-500.0,0.0002141,2]
[418925923,1774567852670,-748.88203364,0.0002141,2]
[418925924,1774567852679,-500.0,0.0002141,2]
[418925925,1774567852688,-500.0,0.0002141,2]
[418925926,1774567852698,-597.61692945,0.0002141,2]
[418925927,1774567852707,-5100.0,0.0002141,2]
[418925928,1774567852716,-5100.0,0.0002141,2]
[418925929,1774567852726,-5100.0,0.0002141,2]
[418925930,1774567852735,-5100.0,0.0002141,2]
[418925931,1774567852744,-5100.0,0.0002141,2]
[418925932,1774567852753,-5100.0,0.0002141,2]
[418925933,1774567852763,-5100.0,0.0002141,2]
[418925934,1774567852772,-5100.0,0.0002141,2]
[418925935,1774567852781,-5100.0,0.0002141,2]